bitfinex-derivatives/quotes_SOLF0:USTF0_20251107
["timestamp","ask_amount","ask_price","bid_price","bid_amount"]
[1762537840348,0.04433285,160.03,159.94,3.13]
[1762537840543,0.04120382,160.0,159.98,3.13]
[1762537840748,0.04182472,160.01,159.98,3.13]
[1762537841256,0.04182472,160.01,160.0,3.13]
[1762537841556,0.04182472,160.01,159.94,3.13]
[1762537843852,0.04182472,160.01,159.9,3.13]
[1762537844050,2.87,160.04,159.9,3.13]
[1762537844252,0.04411817,159.97,159.9,8.7616]
[1762537844547,0.04411817,159.97,159.85,389.25826583]
[1762537844548,0.04411817,159.97,159.91,3.13]
[1762537844752,0.04101922,159.96,159.92,3.13]
[1762537844950,0.04226504,159.96,159.94,3.13]
[1762537845152,0.03935703,159.97,159.94,3.13]
[1762537845448,0.04786182,159.97,159.94,3.13]
[1762537845650,2.87,160.08,159.97,3.13]
[1762537846046,2.87,160.08,160.0,8.7581]
[1762537846251,2.87,160.08,159.95,3.13]
[1762537846553,2.87,160.06,159.95,3.13]
[1762537846753,2.90935317,160.03,160.0,0.04238762]
[1762537846951,0.04783754,160.03,160.0,0.0452363]
[1762537847250,2.91783754,160.03,159.94,3.13]
[1762537847460,2.87,160.07,159.94,3.13]
[1762537847659,4.82786039,160.09,159.94,3.13]
[1762537847958,2.87,160.09,159.96,3.13]
[1762537848148,8.4962,160.07,159.96,8.7596]
[1762537848454,0.04027224,160.03,159.97,3.13]
[1762537848755,0.04027224,160.03,159.98,3.13]
[1762537848957,0.04027224,160.03,160.02,3.13]
[1762537851854,0.04027224,160.03,160.02,4.37]
[1762537852055,0.04027224,160.03,160.02,3.13]
[1762537852263,0.04027224,160.03,159.99,3.13]
[1762537854161,0.04027224,160.03,159.95,62.0]
[1762537854162,0.04027224,160.03,160.01,3.13]
[1762537854960,0.04027224,160.03,160.01,8.7578]
[1762537855158,0.04027224,160.03,160.01,3.13]
[1762537855456,0.04027224,160.03,159.99,5.6287]
[1762537855661,0.04027224,160.03,159.96,3.13]
[1762537856760,0.04027224,160.03,160.02,3.13]
[1762537857062,0.04659124,160.04,160.02,3.13]
[1762537857250,0.04687799,160.05,160.03,5.6272]
[1762537857450,0.04687799,160.05,160.04,3.13]
[1762537857653,0.04687799,160.05,160.03,5.6272]
[1762537857859,0.04687799,160.05,160.02,3.13]
[1762537858061,0.0406467,160.05,159.96,3.13]
[1762537858257,0.04479909,160.02,159.96,3.13]
[1762537858458,0.04479909,160.02,160.0,8.7582]
[1762537858655,0.04479909,160.02,160.01,3.13]
[1762537858958,2.87,160.13,160.05,3.13]
[1762537859156,0.1703,160.16,160.05,3.13]
[1762537859362,2.87,160.15,160.05,3.13]
[1762537859657,8.4933,160.15,160.05,3.13]
[1762537859861,0.04512331,160.12,160.08,0.04081275]
[1762537860565,0.04512331,160.12,160.09,5.6251]
[1762537860751,0.04512331,160.12,160.08,3.17081275]
[1762537863359,0.04512331,160.12,160.08,0.04081275]
[1762537863565,0.04512331,160.12,160.08,2.94081275]
[1762537864566,3.07512331,160.12,160.08,0.04081275]
[1762537864758,0.04512331,160.12,160.08,2.94081275]
[1762537865857,0.04512331,160.12,160.08,0.04081275]
[1762537866064,3.03,160.1,160.08,0.04081275]
[1762537866363,3.07512331,160.12,160.08,0.04081275]
[1762537866556,4.87268357,160.11,160.08,0.04081275]
[1762537866761,3.07512331,160.12,160.08,0.04081275]
[1762537867261,3.03,160.1,160.08,0.04081275]
[1762537867466,4.87233495,160.09,160.08,0.04081275]
[1762537867657,3.03,160.1,160.08,0.04081275]
[1762537867862,4.8776905,160.09,160.08,0.04081275]
[1762537868265,4.88251707,160.09,160.08,0.04081275]
[1762537868462,4.88251707,160.09,160.04,2.9]
[1762537868665,8.79560536,160.13,160.05,2.9]
[1762537868870,4.88239026,160.12,160.05,2.9]
[1762537869071,4.88239026,160.11,160.07,2.9]
[1762537869266,4.88239026,160.1,160.07,2.9]
[1762537869472,4.88239026,160.09,160.07,0.02340048]
[1762537869666,0.04219238,160.1,160.07,0.02340048]
[1762537869973,3.03,160.08,160.0,2.9]
[1762537870159,3.03,160.06,159.96,2.9]
[1762537870365,10.6530065,160.05,159.96,2.9]
[1762537870561,4.88740114,160.04,159.97,5.6293]
[1762537870766,4.88740114,160.03,159.96,2.9]
[1762537870966,4.93072679,160.02,159.96,2.9]
[1762537871159,0.04332565,160.02,159.96,2.9]
[1762537871370,4.89411105,160.01,159.96,2.9]
[1762537871571,0.04332565,160.02,159.96,2.9]
[1762537871769,4.8985379,160.01,159.99,5.6288]
[1762537871973,0.04332565,160.02,159.99,5.6288]
[1762537872168,4.89849205,160.01,159.97,5.6293]
[1762537872474,4.89849205,160.0,159.98,2.9]
[1762537872673,0.04332565,160.02,159.99,5.6285]
[1762537872875,4.90343185,160.01,159.99,5.6285]
[1762537873075,0.04332565,160.02,159.99,5.6285]
[1762537873367,4.90347344,160.01,159.98,2.9]
[1762537873573,0.04332565,160.02,159.98,2.9]
[1762537873774,4.90760293,160.01,159.98,2.9]
[1762537873967,0.04332565,160.02,160.0,2.9]
[1762537874168,4.90756665,160.01,160.0,2.9]
[1762537874370,4.90756665,160.01,159.99,5.6286]
[1762537874569,4.90756665,160.0,159.99,8.5286]
[1762537874871,0.04332565,160.02,160.0,8.5283]
[1762537875175,0.04170862,160.03,160.01,2.9]
[1762537875376,0.04322024,160.04,160.02,8.5275]
[1762537875575,5.76560536,160.06,160.02,8.5275]
[1762537875576,4.91600828,160.03,160.02,8.5275]
[1762537875977,4.91600828,160.03,160.0,8.5282]
[1762537876178,4.86790709,160.02,160.0,2.9]
[1762537876374,4.86790709,160.01,160.0,2.9]
[1762537876575,0.04371421,160.03,160.0,2.9]
[1762537876777,4.87232023,160.02,160.0,2.9]
[1762537877079,4.87232023,160.01,160.0,2.9]
[1762537877275,4.87232023,160.01,159.95,2.9]
[1762537877482,4.92000146,160.0,159.97,8.5293]
[1762537877679,4.92000146,160.0,159.98,2.9]
[1762537877680,2.023e-05,159.99,159.98,2.9]
[1762537877882,0.04768123,160.0,159.98,2.9]
[1762537878075,0.04768123,160.0,159.99,8.5288]
[1762537878475,0.04768123,160.0,159.94,2.9]
[1762537878779,0.04768123,160.0,159.96,2.9]
[1762537879274,0.04768123,160.0,159.99,2.9]
[1762537879979,5.76560536,160.07,160.05,2.9]
[1762537880185,5.76560536,160.08,159.98,2.9]
[1762537880378,5.76560536,160.06,160.0,5.6282]
[1762537880575,5.76560536,160.05,160.0,8.5282]
[1762537880782,0.04139302,160.04,160.01,0.04308751]
[1762537881287,0.04139302,160.04,160.01,2.94308751]
[1762537881484,0.04139302,160.04,160.03,2.9]
[1762537881987,0.04139302,160.04,160.01,0.04308751]
[1762537882781,0.04139302,160.04,160.01,2.94308751]
[1762537883377,5.76560536,160.12,160.08,2.9]
[1762537883585,5.76560536,160.14,160.04,2.9]
[1762537883774,5.76560536,160.16,160.1,2.9]
[1762537883971,5.76560536,160.15,160.1,2.9]
[1762537884172,5.76560536,160.16,160.1,2.9]
[1762537884378,0.04455639,160.15,160.13,2.9]
[1762537884579,0.04245911,160.16,160.13,2.9]
[1762537884785,0.04195998,160.16,160.13,2.94678124]
[1762537885685,0.04195998,160.16,160.14,5.6232]
[1762537885883,0.04195998,160.16,160.15,2.9]
[1762537886985,0.00195998,160.16,160.15,2.9]
[1762537887184,19.00169578,160.25,160.16,2.9]
[1762537887482,3.03,160.25,160.16,2.9]
[1762537887789,5.76560536,160.28,160.21,2.9]
[1762537887984,8.79560536,160.29,160.21,2.9]
[1762537888190,0.04401968,160.26,160.23,0.04731553]
[1762537889481,3.03,160.25,160.08,11.2512]
[1762537889679,3.03,160.25,160.12,2.9]
[1762537889680,7.87642283,160.24,160.12,2.9]
[1762537889883,7.87642283,160.23,160.12,2.9]
[1762537890084,18.32928486,160.26,160.17,2.9]
[1762537890279,7.87365349,160.25,160.17,2.9]
[1762537890486,0.04633541,160.23,160.19,2.94729428]
[1762537890785,0.04401246,160.23,160.19,2.94359424]
[1762537890984,0.04401246,160.23,160.2,5.6211]
[1762537891386,3.07401246,160.23,160.19,0.04359424]
[1762537892500,0.04401246,160.23,160.19,0.04359424]
[1762537892691,0.04401246,160.23,160.19,3.04359424]
[1762537893086,0.04401246,160.23,160.21,5.6207]
[1762537893584,0.04401246,160.23,160.19,3.04359424]
[1762537893585,3.01401246,160.23,160.19,0.04359424]
[1762537893983,2.97,160.21,160.19,0.04359424]
[1762537894179,2.97,160.21,160.13,5.6237]
[1762537894487,2.97,160.2,160.11,3.0]
[1762537895179,0.04576085,160.17,160.14,0.04012446]
[1762537896394,0.04576085,160.17,160.15,8.623]
[1762537896583,0.04576085,160.17,160.16,3.0]
[1762537898099,2.97,160.27,160.17,3.0]
[1762537898293,5.85916336,160.29,160.17,3.0]
[1762537898294,2.97,160.25,160.17,3.0]
[1762537898597,2.97,160.25,160.18,5.6219]
[1762537898785,2.97,160.25,160.17,3.0]
[1762537898985,0.0393477,160.23,160.19,0.04369999]
[1762537899195,3.0093477,160.23,160.19,0.04369999]
[1762537900284,8.86851106,160.23,160.19,0.04369999]
[1762537900594,3.01,160.2,160.19,0.04369999]
[1762537900993,4.25,160.2,160.13,8.6237]
[1762537901196,8.6318,160.19,160.11,5.6244]
[1762537901594,8.6318,160.19,160.09,3.02]
[1762537901595,3.01,160.19,160.09,3.02]
[1762537901794,26.74856746,160.27,160.07,62.0]
[1762537901795,8.86916336,160.23,160.15,3.02]
[1762537901995,3.01,160.2,160.17,0.04075995]
[1762537902192,3.01,160.2,160.17,0.04218532]
[1762537902389,3.01,160.19,160.07,65.02]
[1762537902594,3.01,160.19,160.08,3.02]
[1762537902894,14.49186336,160.17,160.08,3.02]
[1762537903492,0.04562617,160.14,160.08,3.02]
[1762537904395,0.04562617,160.14,160.12,5.6239]
[1762537904694,0.04562617,160.14,160.13,3.02]
[1762537905790,5.85916336,160.23,160.13,3.02]
[1762537905990,3.01,160.22,160.13,3.02]
[1762537906186,3.01,160.18,160.08,3.02]
[1762537906598,5.6226,160.17,160.11,5.6244]
[1762537906894,26.39747381,160.26,160.07,62.0]
[1762537906895,6.442e-05,160.19,160.12,3.06119879]
[1762537907094,5.76560536,160.23,160.12,3.06119879]
[1762537907095,3.01,160.25,160.19,5.6216]
[1762537907299,8.86916336,160.29,160.13,3.02]
[1762537907601,18.71,160.34,160.13,3.02]
[1762537907602,3.01,160.34,160.21,3.02]
[1762537907791,3.01,160.34,160.25,3.02]
[1762537908095,0.04031101,160.31,160.28,0.04550183]
[1762537909193,0.04031101,160.31,160.28,3.06550183]
[1762537909395,0.04031101,160.31,160.3,3.02]
[1762537909593,5.76560536,160.42,160.3,3.02]
[1762537909897,5.76560536,160.42,160.31,3.02]
[1762537910095,3.01,160.42,160.31,3.02]
[1762537910799,0.0454988,160.38,160.35,0.04629792]
[1762537911695,0.0454988,160.38,160.35,3.06629792]
[1762537912296,0.0454988,160.38,160.36,3.02]
[1762537913299,0.0454988,160.38,160.36,5.6156]
[1762537914098,0.0454988,160.38,160.35,3.06629792]
[1762537915402,0.0454988,160.38,160.35,8.68219792]
[1762537915598,0.0454988,160.38,160.35,3.06629792]
[1762537916005,3.0554988,160.38,160.35,0.04629792]
[1762537916505,4.2954988,160.38,160.27,3.02]
[1762537916706,3.01,160.35,160.27,3.02]
[1762537916900,5.85916336,160.36,160.28,5.6184]
[1762537917099,5.85916336,160.36,160.28,8.6384]
[1762537917296,8.86916336,160.39,160.28,3.02]
[1762537917502,0.04767039,160.35,160.32,0.04663337]
[1762537918198,3.05767039,160.35,160.32,0.04663337]
[1762537918704,0.04767039,160.35,160.32,3.06663337]
[1762537919606,3.05767039,160.35,160.32,0.04663337]
[1762537919810,0.04767039,160.35,160.32,3.06663337]
[1762537920513,0.04767039,160.35,160.32,0.04663337]
[1762537922007,0.04767039,160.35,160.32,3.06663337]
[1762537922415,0.04767039,160.35,160.34,8.6166]
[1762537922603,0.04767039,160.35,160.32,0.04663337]
[1762537922804,2.95767039,160.35,160.32,0.04663337]
[1762537923201,0.04767039,160.35,160.32,0.04663337]
[1762537924009,0.04767039,160.35,160.32,3.04663337]
[1762537924408,0.04767039,160.35,160.34,3.0]
[1762537924814,5.6146,160.4,160.34,3.0]
[1762537925711,0.04200674,160.39,160.35,0.04116309]
[1762537926603,8.56700674,160.39,160.35,0.04116309]
[1762537926809,2.91,160.38,160.35,0.04116309]
[1762537927909,8.5253,160.38,160.35,0.04116309]
[1762537928615,5.6157,160.37,160.35,0.04116309]
[1762537928811,2.91,160.36,160.35,0.04116309]
[1762537929416,7.54919132,160.36,160.35,0.04116309]
[1762537929612,2.91,160.36,160.35,0.04116309]
[1762537929912,2.91,160.36,160.26,3.0]
[1762537930508,8.5262,160.36,160.28,3.0]
[1762537930711,5.76560536,160.4,160.28,3.0]
[1762537930712,2.91,160.4,160.28,3.0]
[1762537931011,0.0415672,160.36,160.34,5.6164]
[1762537931205,0.0415672,160.36,160.34,8.6164]
[1762537931614,0.0415672,160.36,160.33,0.04765202]
[1762537931815,0.0415672,160.36,160.33,3.04765202]
[1762537932016,2.9515672,160.36,160.33,0.04765202]
[1762537932210,0.0415672,160.36,160.33,0.04765202]
[1762537932911,2.9515672,160.36,160.33,0.04765202]
[1762537933112,2.9515672,160.36,160.25,3.0]
[1762537933113,2.91,160.34,160.25,3.0]
[1762537933415,2.91,160.31,160.19,264.57776478]
[1762537933615,2.91,160.31,160.21,3.0]
[1762537933812,5.6185,160.29,160.24,5.6199]
[1762537934014,0.04765282,160.28,160.25,0.03932194]
[1762537934213,0.04765282,160.28,160.25,3.03932194]
[1762537934918,0.04765282,160.28,160.27,3.0]
[1762537937317,2.91,160.35,160.31,5.6176]
[1762537937524,2.91,160.35,160.27,3.0]
[1762537937819,8.5264,160.35,160.27,3.0]
[1762537938021,2.91,160.35,160.27,3.0]
[1762537938215,0.04392577,160.33,160.29,0.0451178]
[1762537938417,2.95392577,160.33,160.29,0.0451178]
[1762537939221,2.91,160.3,160.29,0.0451178]
[1762537939615,0.04392577,160.33,160.29,0.0451178]
[1762537939930,2.95392577,160.33,160.29,5.6634178]
[1762537940124,2.95392577,160.33,160.29,0.0451178]
[1762537940311,2.95392577,160.33,160.18,21.97437407]
[1762537940312,2.91,160.31,160.18,21.97437407]
[1762537940512,2.91,160.25,160.18,18.97437407]
[1762537940715,2.91,160.25,160.14,3.0]
[1762537940924,8.53,160.25,160.17,5.6225]
[1762537941326,2.91,160.22,160.1,3.0]
[1762537941625,8.5318,160.2,160.1,3.0]
[1762537941930,2.91,160.19,160.05,65.36]
[1762537942118,8.5329,160.17,160.07,3.0]
[1762537942316,2.91,160.16,160.07,3.0]
[1762537942623,2.94935977,160.14,160.03,8.6272]
[1762537942823,0.04241363,160.1,160.03,8.6272]
[1762537944927,0.04241363,160.1,160.05,8.6268]
[1762537945232,0.0465539,160.09,160.06,3.0]
[1762537945432,0.04622402,160.09,160.06,3.0]
[1762537945621,0.04622402,160.09,160.08,3.0]
[1762537945933,0.04695592,160.1,160.08,3.0]
[1762537946125,0.04488943,160.11,160.08,3.0]
[1762537946528,0.04488943,160.11,160.1,3.0]
[1762537946725,0.04662896,160.12,160.1,3.0]
[1762537946923,0.04284644,160.13,160.1,3.0]
[1762537947118,0.04592514,160.13,160.1,3.0]
[1762537948525,2.91,160.22,160.12,3.0]
[1762537948720,2.91,160.21,160.12,3.0]
[1762537949320,2.91,160.21,160.14,5.6234]
[1762537949728,0.04076996,160.19,160.16,0.04549756]
[1762537951431,2.95076996,160.19,160.16,0.04549756]
[1762537952029,2.91,160.18,160.16,0.04549756]
[1762537952323,0.04076996,160.19,160.16,0.04549756]
[1762537953227,3.15076996,160.19,160.16,0.04549756]
[1762537954820,3.11,160.17,160.16,0.04549756]
[1762537955331,3.15076996,160.19,160.16,0.04549756]
[1762537956231,0.04076996,160.19,160.16,0.04549756]
[1762537957020,0.04076996,160.19,160.16,3.07549756]
[1762537957219,0.04076996,160.19,160.16,0.04549756]
[1762537957632,0.04076996,160.19,160.16,3.07549756]
[1762537958831,0.04076996,160.19,160.16,0.04549756]
[1762537959331,3.15076996,160.19,160.16,0.04549756]
[1762537960035,8.77276996,160.19,160.16,0.04549756]
[1762537960735,0.04076996,160.19,160.16,3.09549756]
[1762537961832,7.95643736,160.27,160.18,3.05]
[1762537962029,3.05,160.27,160.18,3.05]
[1762537962229,7.95493276,160.26,160.18,3.05]
[1762537962429,3.05,160.26,160.18,3.05]
[1762537962927,3.0941609,160.24,160.2,0.04530113]
[1762537963128,3.0941609,160.24,160.2,0.0415381]
[1762537963633,3.0941609,160.24,160.06,19.14]
[1762537963634,3.05,160.21,160.12,3.05]
[1762537964138,5.6225,160.18,160.12,5.6242]
[1762537964332,3.05,160.21,160.08,3.05]
[1762537964538,3.05,160.19,160.08,3.05]
[1762537964737,0.04756728,160.16,160.13,0.045157]
[1762537965239,3.09756728,160.16,160.13,0.045157]
[1762537965729,3.05,160.15,160.13,0.045157]
[1762537966739,0.04756728,160.16,160.13,0.045157]
[1762537966941,3.05,160.15,160.13,0.045157]
[1762537967639,3.09756728,160.16,160.13,0.045157]
[1762537968035,3.05,160.14,160.13,0.045157]
[1762537968339,3.05,160.14,160.03,18.88]
[1762537968340,3.05,160.13,160.02,3.05]
[1762537968544,4.91172702,160.12,160.02,3.05]
[1762537968735,3.05,160.13,160.05,5.6267]
[1762537968932,3.05,160.13,160.02,3.05]
[1762537969131,0.04232494,160.09,160.02,3.05]
[1762537969631,0.04232494,160.09,160.04,3.05]
[1762537969833,0.0477565,160.08,160.04,3.05]
[1762537970034,3.0977565,160.08,159.98,3.05]
[1762537970230,0.04394204,160.05,159.98,3.05]
[1762537970827,0.04394204,160.05,160.03,3.05]
[1762537971439,0.04394204,160.05,160.03,8.6773]
[1762537971740,0.04394204,160.05,160.03,5.6273]
[1762537972330,0.04394204,160.05,160.0,3.05]
[1762537972531,0.04394204,160.05,160.02,3.05]
[1762537972941,0.04394204,160.05,160.03,5.6272]
[1762537973133,0.04394204,160.05,160.02,3.05]
[1762537974538,0.04394204,160.05,160.04,3.05]
[1762537976946,3.09394204,160.05,159.97,62.0]
[1762537977141,0.04394204,160.05,159.98,3.05]
[1762537977339,0.04094231,160.03,159.98,3.05]
[1762537977937,0.04094231,160.03,160.0,3.05]
[1762537978141,0.04410502,160.03,160.0,3.05]
[1762537979146,0.04410502,160.03,160.02,5.6276]
[1762537980241,0.04410502,160.03,160.0,8.6784]
[1762537980450,3.09410502,160.03,159.95,65.05]
[1762537980641,4.93002498,160.02,159.98,3.05]
[1762537980840,0.044317,160.02,159.98,3.05]
[1762537981247,4.92865561,160.01,159.98,8.6789]
[1762537981443,0.044317,160.02,159.99,3.05]
[1762537981644,5.77373692,160.1,159.99,3.05]
[1762537981948,5.77373692,160.13,160.06,8.6763]
[1762537982148,5.77373692,160.13,160.06,3.05]
[1762537982453,8.98569692,160.14,160.08,5.6254]
[1762537982645,0.03938993,160.13,160.09,3.16263723]
[1762537982846,3.06,160.12,160.09,0.04263723]
[1762537983442,5.81570115,160.13,160.01,3.12]
[1762537983443,14.45863692,160.11,160.01,3.12]
[1762537983652,14.45863692,160.11,160.02,3.12]
[1762537984058,3.06,160.1,160.02,8.7478]
[1762537984355,8.87454089,160.08,159.95,3.12]
[1762537984549,8.87454089,160.08,159.94,20.21014525]
[1762537984550,0.04331338,160.03,160.01,5.6281]
[1762537984749,0.04331338,160.03,160.02,3.12]
[1762537984951,0.04331338,160.03,160.01,5.6281]
[1762537986048,0.04331338,160.03,160.02,3.12]
[1762537987348,7.68747381,160.1,160.05,3.12]
[1762537987349,5.77373692,160.1,160.05,3.12]
[1762537987550,8.83373692,160.1,159.99,3.12]
[1762537987749,8.83373692,160.08,159.99,3.12]
[1762537987945,5.77373692,160.07,159.99,3.12]
[1762537988252,5.77373692,160.07,160.01,0.04331338]
[1762537988555,0.04002672,160.05,160.01,3.16331338]
[1762537988956,3.10002672,160.05,160.01,0.04331338]
[1762537989152,7.68747381,160.08,160.01,0.04331338]
[1762537989153,6.364e-05,160.08,160.01,3.16331338]
[1762537989352,7.68747381,160.12,160.01,3.16331338]
[1762537989558,3.22196,160.14,160.05,3.12]
[1762537989861,10.90943381,160.14,160.05,3.12]
[1762537990062,3.22196,160.14,160.05,3.12]
[1762537990256,0.03960016,160.11,160.08,0.04385007]
[1762537990653,0.03960016,160.11,160.08,5.66955007]
[1762537991056,3.09960016,160.11,160.08,0.04385007]
[1762537992161,8.72470016,160.11,160.08,0.04385007]
[1762537992555,3.06,160.1,160.08,0.04385007]
[1762537993355,0.03960016,160.11,160.09,8.7453]
[1762537993566,0.03960016,160.11,160.1,3.12]
[1762537993761,0.03960016,160.11,160.09,8.7453]
[1762537995157,0.03960016,160.11,160.08,0.04385007]
[1762537995353,3.09960016,160.11,160.08,0.04385007]
[1762537995554,3.06,160.1,160.08,0.04385007]
[1762537995967,3.09960016,160.11,160.08,0.04385007]
[1762537996359,0.03960016,160.11,160.08,3.16385007]
[1762537997261,3.09960016,160.11,160.08,0.04385007]
[1762537998060,4.91807864,160.1,160.08,0.04385007]
[1762537998258,3.09960016,160.11,160.08,0.04385007]
[1762537998658,4.91888892,160.1,160.08,0.04385007]
[1762537998858,0.03960016,160.11,160.08,3.16385007]
[1762537999966,0.03960016,160.11,160.09,5.6254]
[1762538000162,0.03960016,160.11,160.1,3.12]
[1762538000666,3.06,160.18,160.1,3.12]
[1762538000868,3.06,160.22,160.1,3.12]
[1762538001261,3.06,160.22,160.13,3.12]
[1762538001664,0.03994397,160.19,160.16,0.04582663]
[1762538002062,0.03994397,160.19,160.17,5.6225]
[1762538002464,0.03994397,160.19,160.16,3.16582663]
[1762538002665,0.03994397,160.19,160.17,5.6226]
[1762538003358,0.03994397,160.19,160.17,8.7426]
[1762538003557,0.03994397,160.19,160.18,3.12]
[1762538004570,0.03994397,160.19,160.17,5.6226]
[1762538004772,0.03994397,160.19,160.17,3.12]
[1762538005078,0.03994397,160.19,160.16,0.04582663]
[1762538007167,0.03994397,160.19,160.16,3.16582663]
[1762538007569,0.03994397,160.19,160.18,3.12]
[1762538009772,79.9,160.33,160.19,3.12]
[1762538009974,7.97109753,160.32,160.19,3.12]
[1762538010172,3.06,160.36,160.21,3.12]
[1762538010371,3.06,160.36,160.19,87.4513]
[1762538010372,3.06,160.36,160.26,3.12]
[1762538010773,3.06,160.36,160.23,5.85320967]
[1762538010774,0.042842,160.33,160.3,8.738]
[1762538010975,0.042842,160.33,160.3,3.12]
[1762538011579,0.042842,160.33,160.29,0.04443848]
[1762538011891,0.042842,160.33,160.29,3.16443848]
[1762538012180,0.042842,160.33,160.32,2.92]
[1762538012374,0.042842,160.33,160.31,5.6175]
[1762538012588,0.042842,160.33,160.3,2.92]
[1762538012772,0.042842,160.33,160.29,5.66273848]
[1762538012975,0.042842,160.33,160.29,0.04443848]
[1762538013583,0.042842,160.33,160.29,2.96443848]
[1762538014084,2.88,160.42,160.32,2.92]
[1762538014280,4.88265872,160.41,160.32,2.92]
[1762538014480,2.88,160.46,160.32,2.92]
[1762538014685,2.88,160.44,160.32,2.92]
[1762538015179,0.04366921,160.4,160.36,0.04604279]
[1762538015778,2.92366921,160.4,160.36,0.04604279]
[1762538018286,8.53866921,160.4,160.36,0.04604279]
[1762538018477,2.88,160.39,160.36,0.04604279]
[1762538019687,8.4953,160.39,160.36,0.04604279]
[1762538019887,2.88,160.38,160.36,0.04604279]
[1762538020685,2.93366921,160.4,160.36,0.04604279]
[1762538021088,0.04366921,160.4,160.36,3.08604279]
[1762538022588,0.04366921,160.4,160.38,5.6154]
[1762538023695,0.04366921,160.4,160.36,8.70194279]
[1762538024192,0.04366921,160.4,160.37,3.04]
[1762538024982,0.04366921,160.4,160.37,8.6555]
[1762538025893,0.04366921,160.4,160.39,3.04]
[1762538027099,0.04366921,160.4,160.37,3.04]
[1762538027398,0.04366921,160.4,160.36,8.70194279]
[1762538028193,0.04366921,160.4,160.36,3.08604279]
[1762538028786,2.93366921,160.4,160.36,0.04604279]
[1762538029191,0.04366921,160.4,160.36,3.08604279]
[1762538029392,2.93366921,160.4,160.36,0.04604279]
[1762538030297,2.89,160.39,160.36,0.04604279]
[1762538031397,2.93366921,160.4,160.36,0.04604279]
[1762538033404,8.54846921,160.4,160.36,0.04604279]
[1762538033600,2.89,160.39,160.36,0.04604279]
[1762538034805,7.65589979,160.38,160.36,0.04604279]
[1762538035005,2.89,160.37,160.36,0.04604279]
[1762538035706,2.89,160.37,160.28,3.04]
[1762538036806,0.04523249,160.34,160.31,8.69879993]
[1762538036994,0.04521769,160.34,160.31,8.70215974]
[1762538037303,0.04521769,160.34,160.31,0.04455974]
[1762538038905,2.89,160.32,160.25,3.04]
[1762538039905,0.04703505,160.3,160.27,0.03950749]
[1762538040705,0.04703505,160.3,160.27,3.07950749]
[1762538041398,0.04703505,160.3,160.29,3.04]
[1762538045014,13.61253088,160.3,160.27,0.03950749]
[1762538045209,7.94709583,160.29,160.2,3.12]
[1762538045514,5.90024472,160.3,160.15,3.12]
[1762538045515,9.02320967,160.27,160.15,3.12]
[1762538045811,12.44300534,160.26,160.15,3.12]
[1762538046015,9.27300534,160.25,160.15,3.12]
[1762538046217,9.27300534,160.25,160.11,18.34343732]
[1762538046218,0.04189567,160.22,160.18,3.16212734]
[1762538046608,0.04189567,160.22,160.18,8.78412734]
[1762538047314,0.04189567,160.22,160.2,3.12]
[1762538047814,3.21189567,160.22,160.18,3.16212734]
[1762538048014,0.04189567,160.22,160.18,3.16212734]
[1762538049312,0.04189567,160.22,160.2,5.6216]
[1762538049611,0.04189567,160.22,160.2,8.7416]
[1762538049915,0.04189567,160.22,160.21,3.12]
[1762538050509,8.95132118,160.3,160.23,5.6205]
[1762538050510,4.50232094,160.29,160.23,5.6205]
[1762538050714,4.79072368,160.28,160.23,3.12]
[1762538050919,3.17,160.3,160.23,3.12]
[1762538051117,4.79024571,160.29,160.23,3.12]
[1762538051321,4.79024571,160.28,160.23,3.12]
[1762538051521,3.17,160.3,160.23,3.12]
[1762538051720,0.04483874,160.27,160.25,3.12]
[1762538052219,5.78132118,160.34,160.25,3.12]
[1762538052413,9.29773426,160.33,160.25,3.12]
[1762538052721,9.30002571,160.32,160.25,8.7398]